bitfinex/quotes_ETHUSD_20250808
["timestamp","ask_amount","ask_price","bid_price","bid_amount"]
[1754671476323,9.04272634,3966.0,3965.9,0.001]
[1754671484112,9.59272634,3966.0,3965.9,0.001]
[1754671491646,8.64412634,3966.0,3965.9,0.001]
[1754671492753,4.57081582,3966.0,3965.9,0.001]
[1754671492919,0.1264,3966.0,3965.9,0.001]
[1754671493123,4.0274,3966.0,3965.9,0.001]
[1754671494122,6.54883217,3966.0,3965.9,0.001]
[1754671495359,4.0274,3966.0,3965.9,0.001]
[1754671496539,3.901,3966.0,3965.9,0.001]
[1754671496727,3.901,3966.0,3965.9,0.4458]
[1754671497857,7.35143217,3966.0,3965.9,0.001]
[1754671498166,8.57050586,3966.0,3965.9,0.001]
[1754671498344,11.57050586,3966.0,3965.9,0.001]
[1754671498725,11.67153386,3966.0,3965.9,0.001]
[1754671498926,13.15872495,3966.0,3965.9,0.001]
[1754671499128,13.30009226,3966.0,3965.9,0.001]
[1754671502143,14.20493067,3966.0,3965.9,0.001]
[1754671503135,13.30009226,3966.0,3965.9,0.001]
[1754671503762,13.30009226,3966.0,3965.9,1e-08]
[1754671503967,14.65014625,3966.0,3965.9,1e-08]
[1754671504141,2.5216865,3965.6,3965.5,0.001]
[1754671504348,8.11669945,3965.6,3965.5,0.001]
[1754671504533,9.02045697,3965.6,3965.5,0.001]
[1754671506170,11.64145697,3965.6,3965.5,0.001]
[1754671506375,7.74145697,3965.6,3965.5,0.001]
[1754671506674,8.13775897,3965.6,3965.5,0.001]
[1754671507173,7.2311275,3965.6,3965.5,0.001]
[1754671508374,3.3321275,3965.6,3965.5,0.001]
[1754671508550,7.91205808,3965.6,3965.5,0.001]
[1754671509153,0.66907369,3965.6,3965.5,0.001]
[1754671509344,4.0254,3965.6,3965.5,0.9118]
[1754671510044,0.1264,3965.6,3965.5,3.43355009]
[1754671510242,0.54380912,3966.4,3966.0,2.52142732]
[1754671510479,3.899,3966.3,3966.1,3.43211232]
[1754671510654,3.899,3966.3,3965.8,12.8361068]
[1754671510655,3.899,3966.3,3966.2,1.0372]
[1754671510842,3.899,3966.3,3966.2,3.55850502]
[1754671511448,3.899,3966.3,3966.2,1.0372]
[1754671511984,3.899,3966.3,3965.7,0.4448]
[1754671512159,3.899,3966.3,3965.9,0.1264]
[1754671512359,3.899,3966.3,3965.9,2.64788001]
[1754671512574,3.899,3966.3,3966.0,0.4448]
[1754671513149,3.899,3966.2,3966.1,0.9108]
[1754671513347,3.898,3966.2,3966.1,3.4321409]
[1754671513550,6.057,3966.5,3966.2,2.52129126]
[1754671513750,3.898,3966.4,3966.3,3.43204145]
[1754671513953,3.898,3966.4,3966.3,2.64764145]
[1754671514485,6.057,3966.5,3966.4,2.52117789]
[1754671514686,9.955,3966.5,3966.3,0.1264]
[1754671514894,9.955,3966.5,3966.4,3.43197789]
[1754671515292,0.002,3967.0,3966.4,1.57956784]
[1754671515491,3.898,3966.9,3966.8,0.1264]
[1754671515667,3.898,3966.9,3966.8,2.64732366]
[1754671515868,3.898,3966.9,3966.8,1.0372]
[1754671516063,3.898,3966.9,3966.8,3.55812366]
[1754671516898,0.002,3967.0,3966.9,2.52086011]
[1754671517079,3.9,3967.0,3966.9,2.52086011]
[1754671517392,3.9,3967.0,3966.9,3.99507849]
[1754671518589,3.9,3967.0,3966.9,2.96566011]
[1754671519456,3.9,3967.0,3966.9,3.43166011]
[1754671520499,3.9,3967.0,3966.9,2.96566011]
[1754671520860,3.9,3967.0,3966.9,3.43166011]
[1754671521069,0.002,3967.0,3966.9,3.43166011]
[1754671521290,3.899,3967.0,3966.9,5.06524368]
[1754671521491,0.002,3967.0,3966.9,5.06524368]
[1754671521773,3.899,3967.0,3966.9,5.06524368]
[1754671522671,3.899,3967.0,3966.9,4.59924368]
[1754671522874,3.899,3967.0,3966.9,4.15444368]
[1754671523067,3.899,3967.0,3966.9,2.52086011]
[1754671523288,3.899,3967.0,3966.8,0.1264]
[1754671523493,3.899,3967.0,3966.8,2.64728328]
[1754671524192,3.899,3967.0,3966.9,2.52086011]
[1754671524405,0.002,3967.0,3966.9,3.58766011]
[1754671524568,3.898,3967.0,3966.9,5.22420624]
[1754671524926,0.002,3967.0,3966.9,12.53420624]
[1754671525069,0.002,3967.2,3967.0,2.52079657]
[1754671525272,1e-08,3967.2,3967.1,5.52073302]
[1754671525521,1e-08,3967.2,3967.1,6.46113302]
[1754671525821,1e-08,3967.2,3967.1,9.01642311]
[1754671530811,0.002,3967.3,3967.2,5.52066948]
[1754671531013,0.002,3967.3,3967.2,6.46106948]
[1754671531218,0.002,3967.3,3967.2,6.58746948]
[1754671531926,0.002,3967.3,3967.2,10.48146948]
[1754671532129,0.042,3967.4,3967.3,2.52060595]
[1754671532329,0.002,3968.1,3967.6,5.52041536]
[1754671532581,0.002,3968.1,3967.6,9.41441536]
[1754671532899,0.002,3968.1,3967.6,10.48121536]
[1754671534327,0.002,3968.1,3968.0,5.52016129]
[1754671534530,0.002,3968.1,3968.0,6.12816468]
[1754671534731,0.002,3968.1,3968.0,6.25456468]
[1754671535921,0.9516,3968.1,3968.0,6.25456468]
[1754671536132,0.9516,3968.1,3968.0,5.64656129]
[1754671538635,0.9516,3968.1,3968.0,3.1264]
[1754671539026,0.9516,3968.1,3968.0,0.1264]
[1754671539224,0.9516,3968.1,3967.8,0.1264]
[1754671539536,2.52034253,3967.8,3967.3,0.1264]
[1754671539737,3.46995348,3967.7,3967.3,0.1264]
[1754671539939,3.46995348,3967.7,3967.0,2.5207831]
[1754671539940,0.97484248,3967.6,3966.7,0.001]
[1754671540104,0.97484248,3967.6,3966.7,2.52194353]
[1754671540105,2.5205872,3967.4,3966.7,2.52194353]
[1754671540311,4.8426,3967.3,3966.7,2.52194353]
[1754671540527,4.3796,3967.3,3966.7,2.52194353]
[1754671540846,0.463,3967.2,3966.9,0.1264]
[1754671541009,3.893,3967.3,3966.9,3.1264]
[1754671541338,0.9496,3967.1,3966.9,0.1264]
[1754671541538,0.9496,3967.1,3966.9,2.64723747]
[1754671541840,0.9496,3967.0,3966.9,0.1264]
[1754671543619,0.9496,3967.0,3966.9,3.1264]
[1754671543928,0.9496,3967.0,3966.9,5.64726011]
[1754671544911,0.9496,3967.0,3966.9,3.1264]
[1754671545337,3.893,3967.3,3966.9,3.1264]
[1754671545502,0.9496,3967.2,3966.9,3.1264]
[1754671545708,0.9496,3967.1,3966.9,3.1264]
[1754671545937,0.9496,3967.1,3967.0,2.52079657]
[1754671546126,3.892,3967.2,3967.0,0.81691064]
[1754671546436,3.892,3967.5,3967.0,0.81691064]
[1754671546638,0.1264,3967.8,3967.7,2.52035184]
[1754671546838,3.892,3968.0,3967.7,2.52035184]
[1754671547037,0.002,3968.1,3968.0,2.52016129]
[1754671547837,0.002,3968.1,3968.0,5.52016129]
[1754671548209,0.002,3968.1,3968.0,5.64656129]
[1754671548410,0.002,3968.1,3968.0,6.58696129]
[1754671548720,1e-08,3968.1,3968.0,6.58696129]
[1754671548913,1e-08,3968.1,3968.0,8.8733762]
[1754671550438,1e-08,3968.1,3968.0,7.9329762]
[1754671550605,1e-08,3968.1,3968.0,3.1264]
[1754671550807,0.94960001,3968.1,3968.0,3.1264]
[1754671551006,0.94960001,3968.1,3968.0,5.64656129]
[1754671551821,1e-08,3968.1,3968.0,5.64656129]
[1754671552827,1e-08,3968.1,3968.0,3.1264]
[1754671553034,1e-08,3968.1,3968.0,5.83280129]
[1754671553231,1e-08,3968.1,3968.0,6.39960129]
[1754671553434,1e-08,3968.1,3968.0,10.70960129]
[1754671553916,1e-08,3968.1,3968.0,10.26920129]
[1754671556520,1e-08,3968.1,3968.0,11.16160129]
[1754671558021,0.04,3968.4,3968.1,5.52009777]
[1754671558328,0.04,3968.4,3968.3,18.33774999]
[1754671559350,0.04,3968.4,3968.3,5.64557076]
[1754671560167,0.04,3968.4,3968.3,23.24574999]
[1754671560341,0.002,3968.9,3968.8,2.51965329]
[1754671560545,0.002,3968.9,3968.8,22.22743252]
[1754671560744,0.002,3969.2,3969.1,2.51946285]
[1754671561058,0.54226752,3970.3,3969.4,3.0]
[1754671561266,0.4487,3970.0,3969.5,6.40920896]
[1754671561468,0.9384,3969.6,3969.5,2.64480896]
[1754671562540,0.002,3969.6,3969.5,2.64480896]
[1754671562745,0.002,3969.6,3969.5,3.17844152]
[1754671563142,0.002,3969.6,3969.5,0.65923256]
[1754671563344,0.9384,3969.6,3969.5,0.1256]
[1754671566758,0.9384,3969.6,3969.5,5.64480896]
[1754671567383,0.002,3969.6,3969.5,5.64480896]
[1754671568342,0.002,3969.6,3969.5,6.10520896]
[1754671568545,0.002,3969.6,3969.5,11.67756334]
[1754671568742,0.002,3969.6,3969.5,11.21716334]
[1754671569271,0.002,3970.0,3969.9,5.51895513]
[1754671569575,0.002,3970.0,3969.9,22.35133436]
[1754671569780,0.002,3970.0,3969.9,23.24373436]
[1754671569981,0.002,3970.0,3969.9,24.58328245]
[1754671570281,0.002,3970.0,3969.9,24.12288245]
[1754671570691,0.002,3970.0,3969.9,23.69088245]
[1754671570841,0.042,3970.4,3970.3,5.51870135]
[1754671571487,0.042,3970.4,3970.3,5.64430135]
[1754671571660,0.042,3970.4,3970.3,6.89260952]
[1754671576883,0.9784,3970.4,3970.3,6.89260952]
[1754671577057,0.9784,3970.4,3970.3,5.64430135]
[1754671577622,0.042,3970.4,3970.3,5.64430135]
[1754671577891,1e-08,3970.4,3970.3,6.53670135]
[1754671578098,0.002,3971.2,3970.4,3.0]
[1754671578390,0.002,3971.2,3971.1,5.51819395]
[1754671578802,0.002,3971.2,3971.1,5.64379395]
[1754671579970,0.9384,3971.2,3971.1,5.64379395]
[1754671580586,0.9384,3971.2,3971.1,3.1256]
[1754671580965,0.9384,3971.2,3971.1,0.1256]
[1754671581453,0.9384,3971.2,3971.1,2.64379395]
[1754671581657,0.9384,3971.2,3971.1,0.1256]
[1754671581857,0.9384,3971.2,3970.9,0.1256]
[1754671582170,0.9364,3971.1,3970.9,0.1256]
[1754671582685,0.002,3971.2,3970.9,0.1256]
[1754671582860,0.9364,3971.0,3970.9,0.1256]
[1754671583807,0.002,3971.2,3970.9,0.1256]
[1754671583970,0.002,3971.2,3971.1,2.51819395]
[1754671584169,0.002,3971.2,3971.1,2.64379395]
[1754671584480,0.9551,3971.2,3971.1,0.1256]
[1754671584681,0.9551,3971.2,3971.1,2.64379395]
[1754671585081,0.9551,3971.2,3971.1,0.1256]
[1754671586161,1.44321,3971.2,3970.6,2.51850879]
[1754671586359,0.97834248,3971.1,3970.9,0.1256]
[1754671586592,0.97834248,3971.1,3970.3,2.51869797]
[1754671586593,2.51825736,3971.0,3970.3,2.51869797]
[1754671586761,2.5183888,3970.8,3970.3,0.1256]
[1754671586961,3.886,3970.7,3970.3,0.1256]
[1754671587189,0.02524248,3970.6,3970.3,0.1256]
[1754671587390,0.9531,3970.5,3970.3,0.1256]
[1754671587598,0.9531,3970.4,3970.3,0.1256]
[1754671587975,4.8391,3970.4,3970.3,0.1256]
[1754671589277,5.57738566,3970.4,3970.3,0.1256]
[1754671589864,4.8391,3970.4,3970.3,0.1266]
[1754671590088,4.9647,3970.4,3970.3,0.001]
[1754671590472,7.48333792,3970.4,3970.3,0.001]
[1754671591280,0.6055,3970.4,3970.3,0.001]
[1754671591571,4.8391,3970.4,3970.3,0.001]
[1754671592304,5.86451688,3970.4,3970.3,0.001]
[1754671592622,5.8392744,3970.4,3970.3,0.001]
[1754671593375,8.35791232,3970.4,3970.3,0.001]
[1754671593601,9.03351232,3970.4,3970.3,0.001]
[1754671593803,9.57590916,3970.4,3970.3,0.001]
[1754671593967,9.71716625,3970.4,3970.3,0.001]
[1754671594980,2.51889168,3970.0,3969.9,0.001]
[1754671595179,6.42913416,3970.0,3969.9,0.001]
[1754671595390,8.8437553,3970.0,3969.9,0.001]
[1754671595788,30.58294791,3970.0,3969.9,1e-08]
[1754671595992,33.138238,3970.0,3969.9,1e-08]
[1754671596198,34.49839643,3970.0,3969.9,1e-08]
[1754671596412,33.138238,3970.0,3969.9,1e-08]
[1754671596695,34.4924719,3970.0,3969.9,1e-08]
[1754671597275,34.4924719,3970.0,3968.6,0.001]
[1754671597276,2.51971678,3968.7,3968.6,0.001]
[1754671597470,7.03525199,3968.7,3968.6,0.001]
[1754671597670,9.07959857,3968.7,3968.6,0.001]
[1754671598598,9.07907729,3968.7,3968.6,0.001]
[1754671600409,8.53835199,3968.7,3968.6,0.001]
[1754671600901,2.64531678,3968.7,3968.6,0.001]
[1754671601210,7.02975926,3968.7,3968.6,0.001]
[1754671601417,4.0116,3968.7,3968.6,0.001]
[1754671601629,3.886,3968.7,3968.6,0.001]
[1754671601916,6.90415926,3968.7,3968.6,0.001]
[1754671602075,8.31375455,3968.7,3968.6,0.001]
[1754671603572,8.86375455,3968.7,3968.6,0.001]
[1754671605106,8.39055455,3968.7,3968.6,0.001]
[1754671605443,8.86375455,3968.7,3968.6,0.001]
[1754671605652,8.86375455,3968.7,3968.2,0.001]
[1754671605653,3.06997076,3968.3,3968.2,0.001]
[1754671605807,3.07003427,3968.2,3968.1,0.04]
[1754671605988,10.07513427,3968.2,3968.1,0.04]
[1754671606426,13.07513427,3968.2,3968.1,0.04]
[1754671607802,16.96213427,3968.2,3968.1,0.04]
[1754671607997,13.7732653,3968.2,3968.1,0.04]
[1754671608824,11.25323103,3968.2,3968.1,0.04]
[1754671609028,12.45903427,3968.2,3968.1,0.04]
[1754671609199,9.939,3968.2,3968.1,0.04]
[1754671609593,12.45903427,3968.2,3968.1,0.04]
[1754671610135,13.41213427,3968.2,3968.1,0.04]
[1754671611120,9.939,3968.2,3968.1,0.04]
[1754671611506,12.45903427,3968.2,3968.1,0.04]
[1754671611822,13.7049377,3968.2,3968.1,0.041]
[1754671612325,14.1848377,3968.2,3968.1,0.041]
[1754671612525,14.6580377,3968.2,3968.1,0.041]
[1754671612735,13.7049377,3968.2,3968.1,0.041]
[1754671612901,11.18490343,3968.2,3968.1,0.041]
[1754671613096,6.052,3968.2,3968.1,0.041]
[1754671613323,9.939,3968.2,3968.1,0.041]
[1754671613540,9.939,3968.2,3968.1,2.56109777]
[1754671613826,9.939,3968.2,3968.1,3.46429777]
[1754671615228,9.939,3968.2,3968.1,2.99339777]
[1754671615737,9.939,3968.2,3968.1,3.11979777]
[1754671615941,9.939,3968.2,3968.1,3.61229777]
[1754671616142,9.939,3968.2,3968.1,0.1674]
[1754671616303,9.939,3968.2,3968.1,0.041]
[1754671618234,6.052,3968.2,3968.1,2.56109777]
[1754671618433,9.939,3968.2,3968.1,4.12052673]
[1754671618948,6.052,3968.2,3968.1,4.12052673]
[1754671619104,9.939,3968.2,3968.1,4.12052673]
[1754671619955,3.887,3968.2,3968.1,4.12052673]
[1754671620446,3.887,3968.2,3968.1,3.19572673]
[1754671620620,3.887,3968.2,3968.1,2.68749777]
[1754671621215,3.887,3968.2,3968.1,2.56109777]
[1754671621417,3.887,3968.2,3968.1,0.041]
[1754671621836,3.91224248,3968.2,3968.1,0.041]
[1754671622031,3.887,3968.2,3968.1,0.041]
[1754671622543,3.91224248,3968.2,3968.1,0.041]
[1754671622715,3.887,3968.2,3968.1,0.041]
[1754671626445,4.43002046,3968.2,3968.1,0.041]
[1754671627059,4.43002046,3968.2,3968.1,2.56109777]
[1754671627213,3.887,3968.2,3968.1,2.56109777]
[1754671627416,3.886,3968.2,3968.1,2.99339777]
[1754671627618,0.54302046,3968.8,3968.7,2.51971678]
[1754671627844,3.886,3968.8,3968.7,3.44451678]
[1754671628050,4.42902046,3968.8,3968.7,3.57011678]
[1754671628253,3.886,3968.8,3968.7,3.57011678]
[1754671629126,3.886,3968.8,3968.7,3.07761678]
[1754671629824,0.002,3969.0,3968.9,2.51958981]
[1754671630180,3.888,3969.0,3968.9,2.51958981]
[1754671630356,3.888,3969.0,3968.9,2.95188981]
[1754671630544,3.888,3969.0,3968.9,3.07748981]
[1754671631117,3.888,3969.0,3968.9,2.64518981]
[1754671631318,3.888,3969.0,3968.9,3.26088458]
[1754671631518,3.888,3969.0,3968.9,3.69318458]
[1754671631719,3.888,3969.0,3968.9,4.18568458]
[1754671632315,3.888,3969.0,3968.9,3.69318458]
[1754671633758,3.888,3969.0,3968.9,3.26088458]
[1754671633963,3.888,3969.0,3968.9,0.1256]
[1754671634165,4.7992,3969.0,3968.7,2.64525825]
[1754671634529,4.7992,3969.0,3968.8,2.5196425]
[1754671634730,3.888,3969.0,3968.7,0.1256]
[1754671635837,3.888,3969.0,3968.8,2.51965019]
[1754671636035,3.888,3969.0,3968.7,2.645306]
[1754671636431,3.888,3969.0,3968.8,2.51965329]
[1754671636628,3.888,3969.0,3968.8,3.0]
[1754671637230,3.888,3969.0,3968.8,2.51963757]
[1754671637433,3.888,3969.0,3968.9,2.51958981]
[1754671638540,3.888,3969.0,3968.7,0.1256]
[1754671638840,3.888,3969.0,3968.8,3.0]
[1754671639060,3.888,3969.0,3968.9,2.51958981]
[1754671639666,3.888,3969.0,3968.8,2.51962922]
[1754671640038,3.888,3969.0,3968.7,0.1256]
[1754671640932,3.888,3969.0,3968.9,0.025]
[1754671641882,3.888,3969.0,3968.9,2.54458981]
[1754671642789,0.002,3969.0,3968.9,2.54458981]
[1754671642953,3.886,3969.0,3968.9,2.67018981]
[1754671643152,3.886,3969.0,3968.9,4.11397877]
[1754671644080,0.002,3969.0,3968.9,7.11127877]
[1754671644386,3.886,3969.0,3968.9,7.11127877]
[1754671645084,3.886,3969.0,3968.9,5.67018981]
[1754671645491,3.886,3969.0,3968.9,3.025]
[1754671645806,7.30872632,3969.0,3968.9,0.025]
[1754671645992,7.43432632,3969.0,3968.9,0.025]
[1754671646188,7.98432632,3969.0,3968.9,0.025]
[1754671646360,7.98432632,3969.0,3968.1,0.041]
[1754671646361,2.52003427,3968.2,3968.1,0.041]
[1754671646554,4.0104,3968.2,3968.1,0.041]
[1754671648256,0.1264,3968.2,3968.1,0.041]
[1754671648498,3.884,3968.2,3968.1,0.041]
[1754671649380,4.7872,3968.2,3968.1,0.041]
[1754671650969,4.3554,3968.2,3968.1,0.041]
[1754671651282,5.23782425,3968.2,3968.1,0.041]
[1754671652491,4.7872,3968.2,3968.1,0.041]
[1754671653093,7.88247675,3968.2,3968.1,0.041]
[1754671653306,7.98363427,3968.2,3968.1,0.041]
[1754671653528,8.52649091,3968.2,3968.1,0.041]
[1754671654139,9.34604594,3968.2,3968.1,0.041]
[1754671654294,10.62285463,3968.2,3968.1,0.041]
[1754671655302,9.8032996,3968.2,3968.1,0.041]
[1754671655915,5.9192996,3968.2,3968.1,0.041]
[1754671656222,5.3692996,3968.2,3968.1,0.041]
[1754671656436,7.07329091,3968.2,3968.1,0.041]
[1754671656639,0.66925664,3968.2,3968.1,0.041]
[1754671656930,0.1264,3968.2,3968.1,0.041]
[1754671657233,4.0104,3968.2,3968.1,0.041]
[1754671657815,3.884,3968.2,3968.1,0.041]
[1754671658138,0.1256,3968.4,3968.1,0.041]
[1754671658310,3.884,3968.3,3968.2,2.51997992]
[1754671659001,3.884,3968.3,3968.2,2.52003427]
[1754671659441,0.002,3969.0,3968.2,2.52003427]
[1754671659442,0.002,3969.0,3968.2,0.6136992]
[1754671659594,3.884,3968.9,3968.3,2.51992421]
[1754671659925,3.884,3968.9,3968.5,0.1256]
[1754671660096,0.02524248,3968.8,3968.5,0.1256]
[1754671660332,3.884,3968.9,3968.2,0.1264]
[1754671660333,2.51978027,3968.6,3968.2,0.1264]
[1754671660536,4.26410051,3968.5,3968.1,0.041]
[1754671660735,2.64562196,3968.3,3968.1,0.041]
[1754671660935,3.884,3968.2,3968.1,0.041]
[1754671661171,4.34104248,3968.2,3968.1,0.041]
[1754671661331,4.7872,3968.2,3968.1,0.041]
[1754671662171,8.91322605,3968.2,3968.1,0.041]
[1754671662371,8.88798357,3968.2,3968.1,0.041]
[1754671663069,8.46438357,3968.2,3968.1,0.041]
[1754671667135,0.1264,3968.2,3968.1,0.041]
[1754671667369,4.0094,3968.2,3968.1,0.041]
[1754671668666,2.54502337,3968.6,3968.3,2.51991411]
[1754671668667,0.1256,3968.6,3968.3,2.51991411]
[1754671668970,0.1256,3968.6,3968.3,2.95951411]
[1754671668971,3.883,3968.5,3968.3,2.95951411]
[1754671669275,0.1256,3968.6,3968.3,0.4396]
[1754671669438,3.883,3968.5,3968.4,3.44930726]
[1754671669641,3.883,3968.5,3968.4,1.78243556]
[1754671669865,3.883,3968.5,3968.4,1.90803556]
[1754671670354,3.883,3968.5,3968.4,4.42794282]
[1754671672570,3.883,3968.5,3968.1,0.041]
[1754671672788,0.9032,3968.4,3968.1,0.041]
[1754671672948,0.92844248,3968.4,3968.1,0.041]
[1754671673138,2.64643427,3968.2,3968.1,0.041]
[1754671673335,2.67167675,3968.2,3968.1,0.041]
[1754671673567,4.57265524,3968.2,3968.1,0.041]
[1754671674176,5.12265524,3968.2,3968.1,0.041]
[1754671674340,9.54826802,3968.2,3968.1,0.041]
[1754671674693,5.54979127,3968.2,3968.1,0.041]
[1754671674858,8.06982554,3968.2,3968.1,0.041]
[1754671675174,8.45791276,3968.2,3968.1,0.041]
[1754671675380,9.00093342,3968.2,3968.1,0.041]
[1754671675946,9.55093342,3968.2,3968.1,0.041]
[1754671676153,9.82583497,3968.2,3968.1,0.041]
[1754671678875,10.50400528,3968.2,3968.1,0.041]
[1754671680308,9.82583497,3968.2,3968.1,0.041]
[1754671681476,6.62310331,3968.2,3968.1,0.041]
[1754671681677,7.75050176,3968.2,3968.1,0.041]
[1754671682070,8.68120176,3968.2,3968.1,0.041]
[1754671683400,4.55242066,3968.2,3968.1,0.041]
[1754671683692,0.54302066,3968.3,3968.1,0.4806]
[1754671683901,3.883,3968.2,3968.1,0.041]
[1754671684062,0.66862066,3968.3,3968.1,0.041]
[1754671684264,3.883,3968.2,3968.1,0.041]
[1754671684568,3.90824248,3968.2,3968.1,0.041]
[1754671685183,3.883,3968.2,3968.1,0.041]
[1754671685762,6.94605493,3968.2,3968.1,0.041]
[1754671685963,8.83591115,3968.2,3968.1,0.041]
[1754671686399,9.38591115,3968.2,3968.1,0.041]
[1754671686660,10.06395798,3968.2,3968.1,0.041]
[1754671686902,9.38591115,3968.2,3968.1,0.041]
[1754671693716,4.02221115,3968.2,3968.1,0.041]
[1754671693886,6.55367675,3968.2,3968.1,0.041]
[1754671694081,7.07145493,3968.2,3968.1,0.041]
[1754671697483,3.18945493,3968.2,3968.1,0.041]
[1754671697805,6.55367675,3968.2,3968.1,0.041]
[1754671698047,7.07145493,3968.2,3968.1,0.041]
[1754671698246,8.74709584,3968.2,3968.1,0.041]
[1754671699358,8.74909584,3968.2,3968.1,0.041]
[1754671699545,0.67142066,3968.2,3968.1,0.041]
[1754671699750,3.884,3968.2,3968.1,0.9503]
[1754671701277,3.884,3968.2,3968.1,3.47039777]
[1754671701427,3.884,3968.2,3968.1,3.59679777]
[1754671701639,0.002,3968.2,3968.1,19.414577]
[1754671701843,3.883,3968.2,3968.1,21.60815528]
[1754671703044,3.883,3968.2,3968.1,8.79037605]
[1754671703247,3.883,3968.2,3968.1,6.59679777]
[1754671705741,0.002,3968.2,3968.1,19.414577]
[1754671707756,0.002,3968.6,3968.5,2.51984376]
[1754671708283,0.002,3968.6,3968.5,7.88184376]
[1754671708783,0.002,3968.6,3968.5,9.95544376]
[1754671709085,0.002,3968.6,3968.5,4.4356]
[1754671709476,3.882,3968.6,3968.5,4.4356]
[1754671709652,4.8209,3968.6,3968.1,2.56107924]
[1754671709847,3.882,3968.6,3968.2,0.1264]
[1754671710080,0.96414248,3968.5,3968.1,0.041]
[1754671710265,2.64643427,3968.2,3968.1,0.041]
[1754671710582,4.0064,3968.2,3968.1,0.041]
[1754671710883,4.9453,3968.2,3968.1,0.041]
[1754671711652,0.002,3968.6,3968.1,2.56109777]
[1754671711851,4.0056,3968.5,3968.1,0.54923808]
[1754671712072,6.52545788,3968.5,3968.1,0.041]
[1754671712258,3.45886863,3968.4,3968.1,0.041]
[1754671712586,2.51997838,3968.3,3968.1,0.041]
[1754671712781,0.9389,3968.4,3968.1,0.041]
[1754671712986,0.96414248,3968.3,3968.1,0.041]
[1754671713685,3.45893427,3968.2,3968.1,0.041]
[1754671714549,3.48417675,3968.2,3968.1,0.041]
[1754671714757,3.45893427,3968.2,3968.1,0.041]
[1754671715494,3.48417675,3968.2,3968.1,0.041]
[1754671717062,2.52003427,3968.2,3968.1,0.041]
[1754671717264,0.1256,3968.3,3968.1,0.041]
[1754671717464,2.64557371,3968.3,3968.1,0.041]
[1754671717712,2.52003427,3968.2,3968.1,0.041]
[1754671718010,7.33893427,3968.2,3968.1,0.041]
[1754671718681,8.33737979,3968.2,3968.1,0.041]
[1754671720445,7.33893427,3968.2,3968.1,0.041]
[1754671724986,4.8189,3968.2,3968.1,0.041]
[1754671725332,3.879,3968.2,3968.1,10.7285879]
[1754671725626,3.879,3968.2,3968.1,13.86788567]
[1754671725981,0.002,3968.6,3968.5,2.51984376]
[1754671726187,3.881,3968.6,3968.5,10.2539879]
[1754671726423,3.881,3968.6,3968.4,12.77387434]
[1754671726585,3.881,3968.6,3968.4,10.2539879]
[1754671726919,3.881,3968.6,3968.3,2.64554936]
[1754671727215,3.881,3968.6,3968.4,2.51990598]
[1754671727785,0.002,3968.6,3968.5,2.51984376]
[1754671727986,0.002,3968.6,3968.5,6.44624376]
[1754671728217,0.002,3968.6,3968.5,10.88184376]
[1754671729197,0.002,3968.6,3968.5,6.95544376]
[1754671729387,3.881,3968.6,3968.5,6.95544376]
[1754671730219,3.87832438,3968.6,3968.5,4.4356]
[1754671730629,3.87832438,3968.6,3968.5,6.95544376]
[1754671732208,0.002,3968.7,3968.5,6.95544376]
[1754671732209,0.002,3968.7,3968.6,2.51978027]
[1754671732413,0.002,3968.7,3968.6,3.44618027]
[1754671732629,0.002,3968.7,3968.6,2.95338027]
[1754671733549,0.002,3968.7,3968.6,2.51978027]
[1754671733701,0.002,3968.7,3968.5,2.6454402]
[1754671734508,0.002,3968.7,3968.6,2.51978027]
[1754671737636,0.002,3968.7,3968.6,6.4901079]
[1754671737799,0.002,3968.7,3968.6,6.9510079]
[1754671738600,0.002,3968.7,3968.6,10.8001079]
[1754671739248,0.002,3968.7,3968.6,10.3463079]
[1754671740445,0.002,3968.7,3968.6,9.82978027]
[1754671742313,0.9119,3968.7,3968.6,4.31]
[1754671743223,0.002,3968.7,3968.6,4.31]
[1754671743615,3.879,3968.7,3968.6,6.82978027]
[1754671743821,3.879,3968.7,3968.6,6.95538027]
[1754671744314,3.879,3968.7,3968.6,4.4356]
[1754671746151,3.879,3968.7,3968.6,6.95538027]
[1754671746326,3.879,3968.7,3968.6,7.90290672]
[1754671746534,0.002,3968.7,3968.6,7.90290672]
[1754671746838,0.002,3968.7,3968.6,8.35670672]
[1754671749159,0.002,3968.7,3968.6,4.4356]
[1754671749365,0.461,3968.7,3968.6,6.95538027]
[1754671749544,0.461,3968.7,3968.6,4.4356]
[1754671751168,0.461,3968.7,3968.6,6.95538027]
[1754671751346,0.002,3968.7,3968.6,6.95538027]
[1754671752945,0.002,3968.7,3968.6,4.4356]
[1754671753748,0.9119,3968.7,3968.6,4.4356]
[1754671754238,0.4529,3968.7,3968.6,4.4356]
[1754671754633,0.9119,3968.7,3968.6,4.31]
[1754671755368,3.43161678,3968.7,3968.6,4.31]
[1754671755575,4.7879,3968.7,3968.6,4.31]
[1754671755733,5.33120524,3968.7,3968.6,4.31]
[1754671756362,5.33120524,3968.7,3968.3,2.64556519]
[1754671756564,4.7879,3968.7,3968.3,2.64556519]
[1754671757037,4.7879,3968.7,3968.4,2.51990276]
[1754671757237,4.7879,3968.7,3968.3,2.64551175]
[1754671757238,3.878,3968.7,3968.3,2.64551175]